[Event "HUN-ch U8-U18 2019"]
[Site "Balatonlelle"]
[Date "2019.06.21"]
[Round "1.33"]
[White "Keresztesi, Aron Bendeguz"]
[Black "Matyassy, Lazar"]
[Result "0-1"]
[ECO "D74"]
[WhiteElo "1069"]
[BlackElo "1539"]
[Annotator "NA"]
[PlyCount "48"]
[EventDate "2019.06.21"]
[EventType "swiss"]
[EventCountry "HUN"]
[SourceTitle "playchess.com"]
[Source "ChessBase"]
[SourceQuality "1"]
[TimeControl "40/5400+30:1800+30"]

1. d4 {[%emt 0:00:02]} Nf6 {[%emt 0:00:10]} 2. Nf3 {[%emt 0:00:05]} g6 {[%emt 0:00:11]} 3. c4 {[%emt 0:00:07]} Bg7 {[%emt 0:00:07]} 4. g3 {[%emt 0:00:12]} O-O {[%emt 0:00:27]} 5. Bg2 {[%emt 0:00:03]} d5 {[%emt 0:00:15]} 6. cxd5 {[%emt 0:00:07]} Nxd5 {[%emt 0:00:07]} 7. O-O {[%emt 0:00:21]} c6 {[%emt 0:00:17]} 8. Qc2 {[%emt 0:00:13]} Nc7 {[%emt 0:03:22]} 9. e3 {[%emt 0:00:31]} Bf5 {[%emt 0:01:01]} 10. Qb3 {[%emt 0:02:04]} Nb5 {[%emt 0:08:51]} 11. a4 Nd6 12. Nc3 {[%emt 0:02:55]} a5 {[%emt 0:02:59]} 13. Bd2 {[%emt 0:00:56]} Na6 {[%emt 0:04:36]} 14. d5 {[%emt 0:01:50]} Bd3 {[%emt 0:02:08]} 15. Rfe1 {[%emt 0:00:35]} Bc4 {[%emt 0:01:06]} 16. Qc2 {[%emt 0:01:08]} cxd5 {[%emt 0:03:44]} 17. b3 {[%emt 0:00:54]} Nb4 {[%emt 0:00:34]} 18. Qb2 {[%emt 0:01:26]} Nd3 {[%emt 0:01:20]} 19. Qa3 {[%emt 0:03:49]} Nxe1 {[%emt 0:00:23]} 20. Rxe1 {[%emt 0:00:26]} Bd3 {[%emt 0:03:20]} 21. Nxd5 {[%emt 0:00:56]} Be4 {[%emt 0:00:26]} 22. Nc3 {[%emt 0:01:51]} Bxf3 {[%emt 0:01:53]} 23. Bxf3 {[%emt 0:01:48]} Nc4 {[%emt 0:00:57]} 24. bxc4 {[%emt 0:01:57]} Qxd2 {[%emt 0:00:59]} 0-1

[Event "HUN-ch U8-U18 2019"]
[Site "Balatonlelle"]
[Date "2019.06.21"]
[Round "1.34"]
[White "Karacsonyi, Bank"]
[Black "Porpaczy, Marton"]
[Result "1-0"]
[ECO "C44"]
[WhiteElo "1529"]
[BlackElo "1058"]
[Annotator "NA"]
[PlyCount "73"]
[EventDate "2019.06.21"]
[EventType "swiss"]
[EventCountry "HUN"]
[SourceTitle "playchess.com"]
[Source "ChessBase"]
[SourceQuality "1"]
[TimeControl "40/5400+30:1800+30"]

1. e4 {[%emt 0:00:03]} e5 {[%emt 0:00:07]} 2. Nf3 {[%emt 0:00:07]} Nc6 {[%emt 0:00:06]} 3. d4 {[%emt 0:00:08]} exd4 {[%emt 0:00:13]} 4. Bc4 {[%emt 0:00:07]} Nge7 {[%emt 0:02:18]} 5. O-O {[%emt 0:00:14]} g6 {[%emt 0:03:28]} 6. Bf4 {[%emt 0:00:33]} Bg7 {[%emt 0:05:11]} 7. Ng5 {[%emt 0:01:26]} O-O {[%emt 0:06:15]} 8. Qf3 {[%emt 0:00:12]} Qe8 {[%emt 0:26:24]} 9. Bxc7 {[%emt 0:00:25]} Nb4 {[%emt 0:11:37]} 10. Na3 {[%emt 0:00:53]} a6 {[%emt 0:10:46]} 11. Bb3 {[%emt 0:01:03]} b5 {[%emt 0:05:43]} 12. e5 {[%emt 0:01:04]} Nbc6 {[%emt 0:02:29]} 13. Nb1 {[%emt 0:03:46]} Bb7 {[%emt 0:03:39]} 14. Qh3 {[%emt 0:01:00]} h6 {[%emt 0:03:47]} 15. Ne4 {[%emt 0:00:13]} Nc8 {[%emt 0:05:19]} 16. Nc5 {[%emt 0:01:29]} Na5 {[%emt 0:03:50]} 17. Bxa5 {[%emt 0:00:57]} Bc6 {[%emt 0:00:15]} 18. Re1 {[%emt 0:01:04]} Qe7 {[%emt 0:02:15]} 19. Nd3 {[%emt 0:01:30]} Qg5 {[%emt 0:01:44]} 20. Bd2 {[%emt 0:00:29]} Qd8 {[%emt 0:01:11]} 21. Bxh6 {[%emt 0:00:53]} Ne7 {[%emt 0:00:15]} 22. Bg5 {[%emt 0:00:34]} a5 {[%emt 0:00:26]} 23. Nf4 {[%emt 0:00:32]} a4 {[%emt 0:00:48]} 24. Nxg6 {[%emt 0:00:08]} axb3 {[%emt 0:00:19]} 25. Nxe7+ {[%emt 0:00:07]} Qxe7 {[%emt 0:00:13]} 26. Bxe7 {[%emt 0:00:06]} Rfe8 {[%emt 0:00:08]} 27. Ba3 {[%emt 0:00:25]} bxa2 {[%emt 0:00:13]} 28. Rxa2 {[%emt 0:00:10]} Bd5 {[%emt 0:00:16]} 29. Ra1 {[%emt 0:00:18]} b4 {[%emt 0:00:12]} 30. Qxd7 {[%emt 0:00:12]} Be6 {[%emt 0:00:13]} 31. Qxd4 {[%emt 0:00:19]} bxa3 {[%emt 0:01:14]} 32. Nxa3 {[%emt 0:00:11]} Rad8 {[%emt 0:00:19]} 33. Qe3 {[%emt 0:00:12]} Bf5 {[%emt 0:00:18]} 34. b4 {[%emt 0:00:14]} Rxe5 {[%emt 0:00:39]} 35. Qg5 {[%emt 0:00:02]} Rde8 {[%emt 0:00:27]} 36. Rxe5 {[%emt 0:00:22]} Rxe5 {[%emt 0:00:10]} 37. Nc4 {[%emt 0:00:15]} 1-0

[Event "HUN-ch U8-U18 2019"]
[Site "Balatonlelle"]
[Date "2019.06.21"]
[Round "1.35"]
[White "Gencsi, David Sandor"]
[Black "Megyeri, Martin"]
[Result "0-1"]
[ECO "B33"]
[WhiteElo "1038"]
[BlackElo "1520"]
[Annotator "NA"]
[PlyCount "52"]
[EventDate "2019.06.21"]
[EventType "swiss"]
[EventCountry "HUN"]
[SourceTitle "playchess.com"]
[Source "ChessBase"]
[SourceQuality "1"]
[TimeControl "40/5400+30:1800+30"]

1. e4 {[%emt 0:00:03]} c5 {[%emt 0:00:08]} 2. Nf3 {[%emt 0:00:10]} Nc6 {[%emt 0:00:08]} 3. d4 {[%emt 0:00:13]} cxd4 {[%emt 0:00:09]} 4. Nxd4 {[%emt 0:00:10]} Nf6 {[%emt 0:00:11]} 5. Nxc6 {[%emt 0:00:38]} bxc6 {[%emt 0:00:19]} 6. e5 {[%emt 0:00:13]} Nd5 {[%emt 0:00:20]} 7. Bc4 {[%emt 0:00:28]} Nb6 {[%emt 0:00:28]} 8. Bd3 {[%emt 0:00:43]} g6 {[%emt 0:00:19]} 9. O-O {[%emt 0:00:14]} Bg7 {[%emt 0:00:18]} 10. Re1 {[%emt 0:01:12]} O-O {[%emt 0:00:47]} 11. Bf4 {[%emt 0:00:17]} d6 {[%emt 0:01:14]} 12. exd6 {[%emt 0:00:23]} exd6 {[%emt 0:00:16]} 13. c3 {[%emt 0:01:30]} Be6 {[%emt 0:01:03]} 14. Be4 {[%emt 0:01:38]} d5 {[%emt 0:00:37]} 15. Bf3 {[%emt 0:00:35]} Qd7 {[%emt 0:01:09]} 16. Be5 {[%emt 0:02:15]} Bxe5 {[%emt 0:01:38]} 17. Rxe5 {[%emt 0:00:18]} Nc4 {[%emt 0:00:16]} 18. Re2 {[%emt 0:01:06]} Rfe8 {[%emt 0:01:28]} 19. b3 {[%emt 0:01:03]} Nb6 {[%emt 0:00:29]} 20. Rd2 {[%emt 0:00:43]} Bg4 {[%emt 0:00:53]} 21. h3 {[%emt 0:01:33]} Bxf3 {[%emt 0:00:25]} 22. Qxf3 {[%emt 0:00:36]} Qd6 {[%emt 0:00:22]} 23. Na3 {[%emt 0:00:31]} Qxa3 {[%emt 0:00:19]} 24. b4 {[%emt 0:00:49]} Qa6 {[%emt 0:00:40]} 25. Qf6 {[%emt 0:00:29]} Re6 {[%emt 0:00:40]} 26. Qg5 {[%emt 0:01:06]} Rae8 {[%emt 0:00:29]} 0-1

[Event "HUN-ch U8-U18 2019"]
[Site "Balatonlelle"]
[Date "2019.06.21"]
[Round "1.36"]
[White "Havasi, Gergely Bulcsu"]
[Black "Bardics, Marko"]
[Result "1-0"]
[ECO "D02"]
[WhiteElo "1486"]
[BlackElo "1010"]
[Annotator "NA"]
[PlyCount "81"]
[EventDate "2019.06.21"]
[EventType "swiss"]
[EventCountry "HUN"]
[SourceTitle "playchess.com"]
[Source "ChessBase"]
[SourceQuality "1"]
[TimeControl "40/5400+30:1800+30"]

1. d4 {[%emt 0:00:03]} d5 {[%emt 0:00:06]} 2. Nf3 {[%emt 0:00:16]} Nf6 {[%emt 0:00:19]} 3. Bf4 {[%emt 0:00:21]} Nc6 {[%emt 0:00:18]} 4. e3 {[%emt 0:00:43]} e6 {[%emt 0:00:17]} 5. a3 {[%emt 0:00:21]} Bd6 {[%emt 0:00:14]} 6. Bxd6 {[%emt 0:00:36]} cxd6 {[%emt 0:00:09]} 7. c4 {[%emt 0:00:50]} O-O {[%emt 0:00:43]} 8. Nc3 {[%emt 0:00:48]} dxc4 {[%emt 0:00:14]} 9. Bxc4 {[%emt 0:00:11]} d5 {[%emt 0:00:08]} 10. Bd3 {[%emt 0:00:58]} Re8 {[%emt 0:00:18]} 11. O-O {[%emt 0:02:19]} Qc7 {[%emt 0:00:22]} 12. Qb3 {[%emt 0:02:19]} Na5 {[%emt 0:00:24]} 13. Qa2 {[%emt 0:01:36]} Nc6 {[%emt 0:00:54]} 14. Rac1 {[%emt 0:00:34]} Bd7 {[%emt 0:00:23]} 15. Nb5 {[%emt 0:01:02]} Qd8 {[%emt 0:00:19]} 16. Nd6 {[%emt 0:00:33]} Rf8 {[%emt 0:00:20]} 17. Nxb7 {[%emt 0:00:23]} Qc7 {[%emt 0:00:39]} 18. Nc5 {[%emt 0:00:55]} Rfe8 {[%emt 0:00:28]} 19. Bb5 {[%emt 0:01:56]} Rac8 {[%emt 0:01:03]} 20. Nxd7 {[%emt 0:00:55]} Qxd7 {[%emt 0:00:15]} 21. Ne5 {[%emt 0:00:29]} Qd6 {[%emt 0:00:15]} 22. Rxc6 {[%emt 0:00:40]} Rxc6 {[%emt 0:00:11]} 23. Bxc6 {[%emt 0:00:37]} Rc8 {[%emt 0:00:40]} 24. Ba4 {[%emt 0:01:19]} h6 {[%emt 0:00:53]} 25. h3 {[%emt 0:00:28]} Qe7 {[%emt 0:00:58]} 26. Qb3 {[%emt 0:00:55]} Ne4 {[%emt 0:00:23]} 27. Rd1 {[%emt 0:00:58]} f6 {[%emt 0:00:33]} 28. Nc6 {[%emt 0:01:06]} Qd6 {[%emt 0:00:40]} 29. Qb4 {[%emt 0:02:40]} Rxc6 {[%emt 0:00:43]} 30. Bxc6 {[%emt 0:00:20]} Qxc6 {[%emt 0:00:07]} 31. Qe1 {[%emt 0:05:29]} Qd7 {[%emt 0:00:44]} 32. Rc1 {[%emt 0:01:02]} Kh7 {[%emt 0:00:23]} 33. f3 {[%emt 0:00:57]} Ng5 {[%emt 0:00:09]} 34. Qg3 {[%emt 0:00:16]} Qb5 {[%emt 0:00:52]} 35. Rc7 {[%emt 0:01:16]} Qxb2 {[%emt 0:00:21]} 36. h4 {[%emt 0:00:50]} Qe2 {[%emt 0:00:17]} 37. hxg5 {[%emt 0:00:50]} Qxe3+ {[%emt 0:00:13]} 38. Kh2 {[%emt 0:00:28]} fxg5 {[%emt 0:00:17]} 39. Qe5 {[%emt 0:00:36]} Qf4+ {[%emt 0:00:14]} 40. Qxf4 {[%emt 0:00:00]} gxf4 {[%emt 0:00:00]} 41. Rxa7 {[%emt 0:00:30]} 1-0

[Event "HUN-ch U8-U18 2019"]
[Site "Balatonlelle"]
[Date "2019.06.22"]
[Round "2.1"]
[White "Nagy, Bettina"]
[Black "Pasti, Anna"]
[Result "0-1"]
[ECO "B24"]
[WhiteElo "1542"]
[BlackElo "1955"]
[Annotator "NA"]
[PlyCount "74"]
[EventDate "2019.06.21"]
[EventType "swiss"]
[EventCountry "HUN"]
[SourceTitle "playchess.com"]
[Source "ChessBase"]
[SourceQuality "1"]
[TimeControl "40/5400+30:1800+30"]

1. e4 {[%emt 0:00:04]} c5 {[%emt 0:00:07]} 2. Nc3 {[%emt 0:00:34]} Nc6 {[%emt 0:00:17]} 3. d3 {[%emt 0:00:22]} e6 {[%emt 0:00:30]} 4. Nge2 {[%emt 0:00:58]} a6 {[%emt 0:01:50]} 5. a4 {[%emt 0:01:24]} Nge7 {[%emt 0:01:33]} 6. Be3 {[%emt 0:03:07]} b6 {[%emt 0:00:25]} 7. g3 {[%emt 0:01:59]} g6 {[%emt 0:01:51]} 8. d4 {[%emt 0:06:43]} cxd4 {[%emt 0:01:00]} 9. Nxd4 {[%emt 0:00:43]} Bg7 {[%emt 0:00:18]} 10. Qd2 {[%emt 0:04:24]} O-O {[%emt 0:00:37]} 11. Bg2 {[%emt 0:03:55]} Bb7 {[%emt 0:02:38]} 12. O-O {[%emt 0:02:33]} Qc7 {[%emt 0:01:51]} 13. Nxc6 {[%emt 0:06:16]} dxc6 {[%emt 0:01:25]} 14. Rad1 {[%emt 0:03:46]} Rfd8 {[%emt 0:00:48]} 15. Qc1 {[%emt 0:02:39]} c5 {[%emt 0:01:49]} 16. Rd3 {[%emt 0:09:29]} Rxd3 {[%emt 0:04:54]} 17. cxd3 {[%emt 0:00:16]} Rd8 {[%emt 0:00:12]} 18. Rd1 {[%emt 0:00:56]} Nc6 {[%emt 0:00:26]} 19. Ne2 {[%emt 0:01:21]} Nd4 {[%emt 0:01:04]} 20. Nxd4 {[%emt 0:04:11]} Bxd4 {[%emt 0:00:08]} 21. b4 {[%emt 0:00:54]} Qd6 {[%emt 0:01:35]} 22. e5 {[%emt 0:04:05]} Qb8 {[%emt 0:00:37]} 23. Bxb7 {[%emt 0:04:24]} Qxb7 {[%emt 0:00:22]} 24. Bxd4 {[%emt 0:03:44]} cxd4 {[%emt 0:00:20]} 25. Qc4 {[%emt 0:01:34]} b5 {[%emt 0:03:56]} 26. axb5 {[%emt 0:02:25]} axb5 {[%emt 0:00:06]} 27. Qc5 {[%emt 0:01:02]} Rd5 {[%emt 0:00:13]} 28. Qc1 {[%emt 0:02:07]} Rxe5 {[%emt 0:00:41]} 29. Qf4 {[%emt 0:01:08]} Rd5 {[%emt 0:02:36]} 30. Rc1 {[%emt 0:01:24]} e5 {[%emt 0:01:04]} 31. Qg4 {[%emt 0:06:14]} Kg7 {[%emt 0:02:08]} 32. f4 {[%emt 0:03:25]} exf4 {[%emt 0:01:26]} 33. Qxf4 {[%emt 0:00:33]} Qe7 {[%emt 0:00:17]} 34. Rf1 {[%emt 0:06:32]} Qe3+ {[%emt 0:00:30]} 35. Qxe3 {[%emt 0:00:32]} dxe3 {[%emt 0:00:05]} 36. Rf3 {[%emt 0:00:26]} Rxd3 {[%emt 0:00:08]} 37. Kf1 {[%emt 0:01:17]} Rb3 {[%emt 0:00:29]} 0-1

[Event "HUN-ch U8-U18 2019"]
[Site "Balatonlelle"]
[Date "2019.06.21"]
[Round "2.1"]
[White "Vilics, Hanna"]
[Black "Markus, Molli Amina"]
[Result "0-1"]
[ECO "A49"]
[WhiteElo "1285"]
[BlackElo "1755"]
[Annotator "NA"]
[PlyCount "144"]
[EventDate "2019.06.21"]
[EventType "swiss"]
[EventCountry "HUN"]
[SourceTitle "playchess.com"]
[Source "ChessBase"]
[SourceQuality "1"]
[TimeControl "40/5400+30:1800+30"]

1. d4 {[%emt 0:00:02]} Nf6 {[%emt 0:00:25]} 2. Nf3 {[%emt 0:00:38]} g6 {[%emt 0:00:39]} 3. g3 {[%emt 0:00:31]} Bg7 {[%emt 0:00:38]} 4. Bg2 {[%emt 0:00:42]} O-O {[%emt 0:01:03]} 5. O-O {[%emt 0:01:52]} d6 {[%emt 0:00:58]} 6. c4 {[%emt 0:02:52]} Nbd7 {[%emt 0:04:27]} 7. b3 {[%emt 0:03:11]} c5 {[%emt 0:02:24]} 8. Bb2 {[%emt 0:03:04]} cxd4 {[%emt 0:04:43]} 9. Nxd4 {[%emt 0:02:11]} Nb6 {[%emt 0:05:20]} 10. Nd2 {[%emt 0:05:08]} Rb8 {[%emt 0:03:52]} 11. Rc1 {[%emt 0:02:37]} Nfd7 {[%emt 0:09:32]} 12. Qc2 {[%emt 0:04:15]} Nc5 {[%emt 0:03:12]} 13. e3 {[%emt 0:05:48]} Ne6 {[%emt 0:03:37]} 14. N2f3 {[%emt 0:02:29]} Nxd4 {[%emt 0:02:09]} 15. Nxd4 {[%emt 0:00:46]} Bd7 {[%emt 0:02:00]} 16. Rfd1 {[%emt 0:01:47]} Bxd4 {[%emt 0:06:28]} 17. Rxd4 {[%emt 0:01:23]} Qc7 {[%emt 0:05:21]} 18. Rcd1 {[%emt 0:05:11]} Bc6 {[%emt 0:03:31]} 19. Bxc6 Qxc6 {[%emt 0:00:48]} 20. Qc3 {[%emt 0:06:54]} f6 {[%emt 0:01:47]} 21. Qd3 {[%emt 0:02:20]} Nd7 {[%emt 0:01:53]} 22. Qe4 {[%emt 0:01:38]} Qxe4 {[%emt 0:02:06]} 23. Rxe4 {[%emt 0:00:09]} Kf7 {[%emt 0:01:10]} 24. Ba3 {[%emt 0:02:14]} b6 {[%emt 0:01:14]} 25. Kf1 {[%emt 0:02:40]} Nc5 {[%emt 0:02:07]} 26. Bxc5 {[%emt 0:01:25]} bxc5 {[%emt 0:00:10]} 27. Rh4 {[%emt 0:01:52]} Rh8 {[%emt 0:01:01]} 28. e4 {[%emt 0:01:07]} h5 {[%emt 0:01:57]} 29. Rf4 {[%emt 0:00:53]} a5 {[%emt 0:02:39]} 30. Rd3 {[%emt 0:01:33]} Rb7 {[%emt 0:03:08]} 31. Ke2 {[%emt 0:00:51]} Rhb8 {[%emt 0:00:35]} 32. Rff3 {[%emt 0:00:29]} a4 {[%emt 0:04:49]} 33. h4 {[%emt 0:00:59]} Ra8 {[%emt 0:00:40]} 34. Rd2 {[%emt 0:01:18]} Rb4 {[%emt 0:01:04]} 35. Kd1 {[%emt 0:01:15]} axb3 {[%emt 0:01:04]} 36. axb3 {[%emt 0:00:21]} Ra1+ {[%emt 0:01:22]} 37. Kc2 {[%emt 0:00:24]} Ra3 {[%emt 0:01:18]} 38. Kb2 {[%emt 0:00:46]} Ra8 {[%emt 0:00:42]} 39. Kc3 {[%emt 0:00:28]} Rab8 {[%emt 0:00:23]} 40. Kc2 {[%emt 0:00:00]} Kg7 {[%emt 0:00:00]} 41. Rd5 {[%emt 0:01:26]} R4b6 {[%emt 0:04:03]} 42. Rd2 {[%emt 0:01:07]} Rf8 {[%emt 0:04:21]} 43. Rdd3 {[%emt 0:01:32]} e6 {[%emt 0:01:57]} 44. Rfe3 {[%emt 0:01:07]} Ra8 {[%emt 0:01:42]} 45. Kc3 {[%emt 0:00:54]} Ra2 {[%emt 0:00:31]} 46. Rd2 {[%emt 0:00:36]} Rxb3+ {[%emt 0:00:39]} 47. Kxb3 {[%emt 0:00:19]} Rxd2 {[%emt 0:00:05]} 48. f4 {[%emt 0:00:23]} Kf7 {[%emt 0:01:12]} 49. Kc3 {[%emt 0:00:53]} Ra2 {[%emt 0:01:14]} 50. Kb3 {[%emt 0:00:24]} Ra7 {[%emt 0:00:26]} 51. Rd3 {[%emt 0:00:33]} Ke7 {[%emt 0:00:11]} 52. Kb2 {[%emt 0:00:43]} Rb7+ {[%emt 0:00:22]} 53. Kc3 {[%emt 0:00:09]} f5 {[%emt 0:00:46]} 54. e5 {[%emt 0:01:01]} dxe5 {[%emt 0:00:27]} 55. fxe5 {[%emt 0:00:09]} Ra7 {[%emt 0:01:03]} 56. Kb2 {[%emt 0:00:21]} Ra4 {[%emt 0:01:36]} 57. Kb3 {[%emt 0:00:17]} Ra1 {[%emt 0:00:11]} 58. Kb2 {[%emt 0:00:14]} Re1 {[%emt 0:00:08]} 59. Kc3 {[%emt 0:00:31]} Rxe5 {[%emt 0:00:11]} 60. Rf3 {[%emt 0:01:04]} Re1 {[%emt 0:00:26]} 61. Rf2 {[%emt 0:01:09]} Re3+ {[%emt 0:00:44]} 62. Kd2 {[%emt 0:00:13]} Rxg3 {[%emt 0:00:06]} 63. Rh2 {[%emt 0:00:12]} Rg4 {[%emt 0:00:16]} 64. Kd3 {[%emt 0:00:09]} Rd4+ {[%emt 0:00:08]} 65. Kc3 {[%emt 0:00:09]} Kf6 {[%emt 0:00:05]} 66. Rh1 {[%emt 0:00:11]} f4 {[%emt 0:00:37]} 67. Rh3 {[%emt 0:00:12]} Kf5 {[%emt 0:00:14]} 68. Rh1 {[%emt 0:00:09]} e5 {[%emt 0:00:43]} 69. Re1 {[%emt 0:00:13]} f3 {[%emt 0:00:07]} 70. Rf1 {[%emt 0:00:05]} Rf4 {[%emt 0:00:12]} 71. Kd3 {[%emt 0:00:08]} e4+ {[%emt 0:00:19]} 72. Ke3 {[%emt 0:00:06]} Rxh4 {[%emt 0:00:06] Kd4 Ke5+} 0-1

[Event "HUN-ch U8-U18 2019"]
[Site "Balatonlelle"]
[Date "2019.06.22"]
[Round "2.2"]
[White "Juhasz, Judit"]
[Black "Somogyi, Barbara"]
[Result "1-0"]
[ECO "B01"]
[WhiteElo "1963"]
[BlackElo "1577"]
[Annotator "NA"]
[PlyCount "57"]
[EventDate "2019.06.21"]
[EventType "swiss"]
[EventCountry "HUN"]
[SourceTitle "playchess.com"]
[Source "ChessBase"]
[SourceQuality "1"]
[TimeControl "40/5400+30:1800+30"]

1. e4 {[%emt 0:00:04]} d5 {[%emt 0:00:04]} 2. exd5 {[%emt 0:00:10]} Qxd5 {[%emt 0:00:09]} 3. Nc3 {[%emt 0:00:10]} Qd6 {[%emt 0:00:06]} 4. d4 {[%emt 0:00:09]} c6 {[%emt 0:00:06]} 5. Be3 {[%emt 0:00:16]} Nf6 {[%emt 0:00:34]} 6. Bd3 {[%emt 0:01:03]} Bg4 {[%emt 0:02:30]} 7. f3 {[%emt 0:00:35]} Bh5 {[%emt 0:01:36]} 8. Nge2 {[%emt 0:00:46]} Bg6 {[%emt 0:03:12]} 9. Bf4 {[%emt 0:02:11]} Qd8 {[%emt 0:05:22]} 10. Qd2 {[%emt 0:03:16]} e6 {[%emt 0:01:50]} 11. Ne4 {[%emt 0:03:34]} Nxe4 {[%emt 0:04:51]} 12. fxe4 {[%emt 0:01:08]} Bd6 {[%emt 0:01:52]} 13. O-O-O {[%emt 0:09:43]} Qc7 {[%emt 0:04:08]} 14. e5 {[%emt 0:20:33]} Be7 {[%emt 0:04:18]} 15. Bxg6 {[%emt 0:05:59]} hxg6 {[%emt 0:00:30]} 16. c4 Nd7 {[%emt 0:05:03]} 17. Kb1 {[%emt 0:03:51]} Nb6 {[%emt 0:05:28]} 18. Rc1 {[%emt 0:02:18]} Qd7 {[%emt 0:06:46]} 19. Rhd1 {[%emt 0:02:15]} O-O {[%emt 0:14:24]} 20. h4 {[%emt 0:01:26]} f6 {[%emt 0:11:03]} 21. exf6 {[%emt 0:03:22]} gxf6 {[%emt 0:01:31]} 22. Bh6 {[%emt 0:01:18]} Rfd8 {[%emt 0:03:55]} 23. Qd3 {[%emt 0:02:32]} f5 {[%emt 0:03:11]} 24. h5 {[%emt 0:03:16]} g5 {[%emt 0:03:56]} 25. Qe3 {[%emt 0:01:19]} Bf6 {[%emt 0:02:16]} 26. Bxg5 {[%emt 0:00:38]} Qf7 {[%emt 0:01:30]} 27. Bxf6 {[%emt 0:02:01]} Qxf6 {[%emt 0:00:16]} 28. g4 {[%emt 0:01:19]} Kh8 {[%emt 0:03:14]} 29. g5 {[%emt 0:00:20]} 1-0

[Event "HUN-ch U8-U18 2019"]
[Site "Balatonlelle"]
[Date "2019.06.22"]
[Round "2.2"]
[White "Nandin-Erdene, Davaademberel"]
[Black "Papp, Regina"]
[Result "1-0"]
[ECO "B01"]
[WhiteElo "1581"]
[BlackElo "1252"]
[Annotator "NA"]
[PlyCount "87"]
[EventDate "2019.06.21"]
[EventType "swiss"]
[EventCountry "HUN"]
[SourceTitle "playchess.com"]
[Source "ChessBase"]
[SourceQuality "1"]
[TimeControl "40/5400+30:1800+30"]

1. e4 {[%emt 0:00:01]} d5 {[%emt 0:00:05]} 2. exd5 {[%emt 0:00:05]} Nf6 {[%emt 0:00:09]} 3. d4 {[%emt 0:00:08]} Nxd5 {[%emt 0:00:13]} 4. c4 {[%emt 0:00:08]} Nf6 {[%emt 0:00:20]} 5. Nc3 {[%emt 0:00:28]} Bf5 {[%emt 0:01:11]} 6. Nf3 {[%emt 0:00:10]} e6 {[%emt 0:00:54]} 7. Qb3 {[%emt 0:01:07]} Nc6 {[%emt 0:01:53]} 8. Qxb7 {[%emt 0:02:05]} Nb4 {[%emt 0:02:45]} 9. Kd1 {[%emt 0:26:51]} Nc2 {[%emt 0:02:58]} 10. Qc6+ {[%emt 0:00:39]} Nd7 {[%emt 0:00:36]} 11. Ne5 {[%emt 0:11:45]} Rc8 12. Nxd7 {[%emt 0:06:29]} Qxd7 {[%emt 0:18:19]} 13. Qxd7+ {[%emt 0:00:13]} Kxd7 {[%emt 0:00:28]} 14. g4 {[%emt 0:03:05]} Nxa1 {[%emt 0:01:19]} 15. gxf5 {[%emt 0:00:11]} exf5 {[%emt 0:00:52]} 16. b3 {[%emt 0:03:40]} Rb8 {[%emt 0:01:32]} 17. Bd3 {[%emt 0:00:55]} Bb4 {[%emt 0:04:52]} 18. Bb2 {[%emt 0:05:30]} c5 {[%emt 0:01:07]} 19. Bxa1 {[%emt 0:02:39]} cxd4 {[%emt 0:02:09]} 20. Nb5 {[%emt 0:00:23]} Bc5 {[%emt 0:01:02]} 21. Nxd4 {[%emt 0:02:21]} Bxd4 {[%emt 0:01:56]} 22. Bxd4 {[%emt 0:00:07]} Kc6 {[%emt 0:01:26]} 23. Bxg7 {[%emt 0:02:32]} Rhd8 {[%emt 0:01:42]} 24. Kc2 {[%emt 0:00:22]} Rg8 {[%emt 0:02:14]} 25. Bd4 {[%emt 0:01:09]} Rbd8 {[%emt 0:01:41]} 26. Be3 {[%emt 0:00:26]} h5 {[%emt 0:01:34]} 27. Bxf5 {[%emt 0:00:38]} a6 {[%emt 0:00:56]} 28. Be4+ {[%emt 0:00:27]} Kc7 {[%emt 0:01:51]} 29. Bd5 {[%emt 0:00:30]} Rg7 {[%emt 0:03:09]} 30. Re1 {[%emt 0:02:45]} f5 {[%emt 0:02:55]} 31. Bf4+ {[%emt 0:01:21]} Kc8 {[%emt 0:01:12]} 32. Re5 {[%emt 0:00:36]} h4 {[%emt 0:01:12]} 33. Rxf5 {[%emt 0:02:00]} Re8 {[%emt 0:01:31]} 34. Be3 {[%emt 0:01:15]} h3 {[%emt 0:01:28]} 35. Rf6 {[%emt 0:00:43]} a5 {[%emt 0:01:28]} 36. Ra6 {[%emt 0:01:54]} Rge7 {[%emt 0:02:06]} 37. Rxa5 {[%emt 0:01:57]} Kd7 {[%emt 0:03:08]} 38. Ra7+ {[%emt 0:02:37]} Kc8 {[%emt 0:02:31]} 39. Rxe7 {[%emt 0:01:08]} Rxe7 {[%emt 0:00:09]} 40. a4 {[%emt 0:00:00]} Kb8 {[%emt 0:00:00]} 41. b4 {[%emt 0:00:54]} Rg7 {[%emt 0:01:52]} 42. a5 {[%emt 0:00:34]} Rg2 {[%emt 0:01:05]} 43. Bxg2 {[%emt 0:00:32]} hxg2 {[%emt 0:00:08]} 44. f4 {[%emt 0:00:04]} 1-0

[Event "HUN-ch U8-U18 2019"]
[Site "Balatonlelle"]
[Date "2019.06.22"]
[Round "2.3"]
[White "Ivan, Reka Gyongyver"]
[Black "Gombocz, Zsofia"]
[Result "1-0"]
[ECO "D00"]
[WhiteElo "1619"]
[BlackElo "2077"]
[Annotator "NA"]
[PlyCount "87"]
[EventDate "2019.06.21"]
[EventType "swiss"]
[EventCountry "HUN"]
[SourceTitle "playchess.com"]
[Source "ChessBase"]
[SourceQuality "1"]
[TimeControl "40/5400+30:1800+30"]

1. d4 {[%emt 0:00:03]} d5 {[%emt 0:00:05]} 2. Bf4 {[%emt 0:00:11]} c5 {[%emt 0:00:24]} 3. e3 {[%emt 0:01:00]} Nc6 {[%emt 0:00:30]} 4. c3 {[%emt 0:01:06]} Nf6 {[%emt 0:00:28]} 5. Nd2 {[%emt 0:01:19]} Bf5 {[%emt 0:01:42]} 6. Qb3 {[%emt 0:08:00]} Qd7 {[%emt 0:01:55]} 7. Ngf3 {[%emt 0:01:03]} c4 {[%emt 0:01:42]} 8. Qd1 {[%emt 0:01:31]} e6 {[%emt 0:07:54]} 9. Be2 {[%emt 0:10:24]} h6 {[%emt 0:03:37]} 10. b3 {[%emt 0:01:51]} Ba3 {[%emt 0:07:41]} 11. e4 {[%emt 0:04:59]} dxe4 {[%emt 0:11:33]} 12. Ne5 {[%emt 0:03:07]} Nxe5 {[%emt 0:01:30]} 13. dxe5 {[%emt 0:02:37]} Nd5 {[%emt 0:02:20]} 14. Nxc4 {[%emt 0:02:31]} Nxf4 {[%emt 0:02:45]} 15. Nxa3 {[%emt 0:02:36]} Nxg2+ {[%emt 0:08:02]} 16. Kf1 {[%emt 0:00:18]} Bh3 {[%emt 0:01:27]} 17. Bb5 {[%emt 0:04:29]} Ne3+ {[%emt 0:00:13]} 18. Ke1 {[%emt 0:00:18]} Nxd1 {[%emt 0:00:44]} 19. Rxd1 {[%emt 0:01:16]} Rd8 {[%emt 0:02:14]} 20. Bxd7+ {[%emt 0:03:18]} Rxd7 {[%emt 0:00:10]} 21. Rxd7 {[%emt 0:01:08]} Kxd7 {[%emt 0:00:07]} 22. Nb5 {[%emt 0:00:45]} Rc8 {[%emt 0:06:29]} 23. c4 {[%emt 0:05:47]} Rc5 {[%emt 0:03:05]} 24. Rg1 {[%emt 0:01:33]} g6 {[%emt 0:03:18]} 25. Nd6 {[%emt 0:01:07]} Ke7 {[%emt 0:02:17]} 26. Nxb7 {[%emt 0:06:22]} Rxe5 {[%emt 0:02:24]} 27. Rg3 {[%emt 0:03:50]} Bf5 {[%emt 0:01:35]} 28. b4 {[%emt 0:04:43]} f6 {[%emt 0:04:58]} 29. Ke2 {[%emt 0:06:05]} Kd7 30. Nc5+ {[%emt 0:03:28]} Kc6 {[%emt 0:04:05]} 31. Nb3 g5 {[%emt 0:04:12]} 32. Nd4+ {[%emt 0:03:10]} Kb7 {[%emt 0:04:52]} 33. Nb5 {[%emt 0:04:44]} Bg6 {[%emt 0:02:37]} 34. Ra3 {[%emt 0:01:25]} a6 {[%emt 0:02:55]} 35. Nd6+ {[%emt 0:01:43]} Kb6 {[%emt 0:00:52]} 36. c5+ {[%emt 0:01:09]} Kc7 {[%emt 0:00:17]} 37. Rxa6 {[%emt 0:01:38]} Bh5+ {[%emt 0:01:40]} 38. Ke3 {[%emt 0:02:37]} Rd5 {[%emt 0:01:08]} 39. Nb5+ {[%emt 0:00:00]} Kb7 {[%emt 0:00:00]} 40. Rd6 f5 41. Rxd5 {[%emt 0:06:00]} exd5 {[%emt 0:02:50]} 42. Nd6+ {[%emt 0:00:00]} Kc7 {[%emt 0:02:13]} 43. Nxf5 {[%emt 0:00:35]} Bg6 44. Nxh6 1-0